fUST/lending_fUST_20260203
["ID","MTS","AMOUNT","RATE_DAILY","PERIOD"]
[404364608,1770078640048,-5000.0,0.00059,2]
[404364610,1770078640057,-190.23173765,0.00059673,60]
[404364612,1770078640066,-186.45275845,0.00059726,2]
[404364614,1770078640075,-19754.16889763,0.0005978,120]
[404364616,1770078640084,-1018.74,0.000598,120]
[404364618,1770078640094,-10000.0,0.000598,2]
[404364620,1770078640103,-569.48659174,0.00059815,5]
[404364623,1770078640112,-2275.66842059,0.00059815,5]
[404364625,1770078640124,-626.71909883,0.00059815,5]
[404364627,1770078640135,-335.40650892,0.00059815,5]
[404364629,1770078640145,-1340.28440963,0.00059815,5]
[404364631,1770078640158,-540.9636619,0.00059816,5]
[404364633,1770078640168,-151.0,0.00059826,120]
[404364635,1770078640177,-50062.97777143,0.00059826,30]
[404364637,1770078640187,-31686.21153989,0.00059826,30]
[404364679,1770078640589,-514.03,0.00054784,10]
[404364682,1770078640600,-500.0,0.00054794,120]
[404364684,1770078640610,-52670.50268654,0.00059826,30]
[404365239,1770078645926,-3170.68801967,0.00039763,30]
[404365310,1770078646625,-1829.31198033,0.00039763,30]
[404365312,1770078646635,-3000.0,0.000565,120]
[404365314,1770078646644,-27547.7475182,0.00059826,30]
[404365340,1770078646868,-7553.5579409,0.00059826,30]
[404365342,1770078646879,-3933.39560258,0.00059826,30]
[404365797,1770079143144,262.87439204,0.00013699,2]
[404365801,1770079263847,527.31612557,0.00013273,2]
[404365858,1770079832243,-997.14197923,0.00025007,2]
[404366694,1770079845629,-4206.7984623,0.00024757,2]
[404366697,1770079845641,-793.2015377,0.00024757,2]
[404366699,1770079845650,-277.54840615,0.0002526,2]
[404366701,1770079845659,-500.0,0.00028693,2]
[404366703,1770079845668,-400.0,0.00035259,2]
[404366705,1770079845677,-300.0,0.00035964,30]
[404366707,1770079845686,-300.0,0.00035964,30]
[404366710,1770079845695,-300.0,0.00035964,30]
[404366712,1770079845705,-300.0,0.00035964,30]
[404366714,1770079845714,-300.0,0.00035964,30]
[404366715,1770079845723,-300.0,0.00035964,30]
[404366717,1770079845732,-300.0,0.00035964,30]
[404366719,1770079845741,-300.0,0.00035964,30]
[404366721,1770079845750,-300.0,0.00035964,30]
[404366723,1770079845760,-300.0,0.00035964,30]
[404366725,1770079845769,-300.0,0.00035964,30]
[404366727,1770079845778,-216.76164772,0.00035964,30]
[404366841,1770079846842,-83.23835228,0.00035964,30]
[404366843,1770079846852,-300.0,0.00035964,30]
[404366845,1770079846862,-300.0,0.00035964,30]
[404366846,1770079846871,-300.0,0.00035964,30]
[404366848,1770079846880,-150.24523627,0.00039728,2]
[404366850,1770079846889,-200.0,0.0004,2]
[404366852,1770079846898,-1545.2373026,0.00042302,2]
[404366855,1770079846911,-180.26975097,0.00042952,28]
[404366857,1770079846920,-156.0,0.0005,120]
[404366859,1770079846929,-200.79592,0.0005,20]
[404366861,1770079846939,-156.0,0.000512,120]
[404366863,1770079846949,-156.0,0.000523,120]
[404366865,1770079846958,-156.0,0.000535,120]
[404366867,1770079846968,-150.0,0.000543,120]
[404366869,1770079846978,-156.0,0.000547,120]
[404366870,1770079846987,-299.93400011,0.00054793,120]
[404366872,1770079846995,-292.19959204,0.00054793,31]
[404366874,1770079847006,-446.21296515,0.00054794,120]
[404366876,1770079847015,-500.0,0.00054794,120]
[404366878,1770079847027,-773.01469081,0.00054794,2]
[404366881,1770079847038,-226.98530919,0.00054794,2]
[404366882,1770079847047,-508.16,0.00054794,120]
[404366884,1770079847057,-500.0,0.00054794,120]
[404366886,1770079847066,-294.59592678,0.00054794,120]
[404367340,1770080223208,527.31612557,0.00013273,2]
[404367385,1770080481367,1385.0,0.00030137,120]
[404367460,1770081001535,13081.71,0.00039755,120]
[404367479,1770081032439,-5000.0,0.00024703,2]
[404367481,1770081032448,-1200.0,0.00026848,2]
[404367482,1770081032457,-300.0,0.00035258,3]
[404367483,1770081032467,-300.0,0.00035258,3]
[404367484,1770081032476,-320.0,0.00035258,2]
[404367485,1770081032485,-300.0,0.00035258,3]
[404367486,1770081032494,-300.0,0.00035259,3]
[404367487,1770081032504,-176.83337778,0.00036584,2]
[404367488,1770081032519,-156.16662222,0.00036584,2]
[404367489,1770081032528,-321.0567974,0.00036585,2]
[404367490,1770081032538,-363.75249416,0.00036585,2]
[404367491,1770081032549,-631.87264066,0.00036585,2]
[404367492,1770081032559,-1839.21342901,0.00036585,2]
[404367517,1770081038639,-25455.24608033,0.00036585,2]
[404367519,1770081038648,-5452.7119944,0.00036585,2]
[404367521,1770081038658,-500.0,0.00039329,15]
[404367523,1770081038667,-326.89948021,0.00039329,15]
[404367525,1770081038676,-150.30481812,0.00039728,2]
[404367527,1770081038685,-500.0,0.00040553,120]
[404367529,1770081038694,-500.0,0.00040553,120]
[404367531,1770081038703,-300.0,0.00040554,60]
[404367533,1770081038713,-300.0,0.00040554,60]
[404367535,1770081038722,-300.0,0.00040554,60]
[404367537,1770081038731,-300.0,0.00040554,60]
[404367539,1770081038741,-300.0,0.00040554,60]
[404367540,1770081038751,-300.0,0.00040554,60]
[404367542,1770081038761,-300.0,0.00040554,60]
[404367544,1770081038770,-300.0,0.00040554,60]
[404367546,1770081038779,-300.0,0.00040554,60]
[404367548,1770081038788,-300.0,0.00040554,60]
[404367550,1770081038798,-300.0,0.00040554,60]
[404367552,1770081038807,-300.0,0.00040554,60]
[404367554,1770081038816,-300.0,0.00040554,60]
[404367556,1770081038825,-300.0,0.00040554,60]
[404367558,1770081038835,-300.0,0.00040554,60]
[404367561,1770081038844,-600.0,0.00041364,60]
[404367563,1770081038854,-150.0,0.00041364,120]
[404367565,1770081038864,-1350.1367428,0.00041806,2]
[404367567,1770081038873,-176.3244746,0.000427,30]
[404367569,1770081038883,-177.0,0.00043364,120]
[404367571,1770081038892,-264.88509414,0.00045364,120]
[404367573,1770081038902,-720.0,0.000455,120]
[404367575,1770081038911,-151.0,0.0005,120]
[404367577,1770081038920,-864.0,0.00050051,120]
[404367579,1770081038929,-771.873023,0.00051,85]
[404367581,1770081038938,-151.0,0.000512,120]
[404367583,1770081038947,-150.30481812,0.00052223,2]
[404367585,1770081038958,-151.0,0.000523,120]
[404367587,1770081038967,-1000.0,0.00053,120]
[404367589,1770081038976,-151.0,0.000535,120]
[404367591,1770081038985,-566.82,0.0005389,10]
[404367593,1770081038994,-34315.77610859,0.000539,7]
[404367595,1770081039006,-287.44,0.000539,7]
[404367597,1770081039022,-729.41544042,0.000539,7]
[404367600,1770081039034,-13062.80825965,0.000539,7]
[404367602,1770081039045,-1558.73117524,0.000539,7]
[404367604,1770081039056,-134112.68057724,0.000539,7]
[404367606,1770081039066,-1000.0,0.00054,120]
[404367608,1770081039075,-245.82584153,0.00054251,120]
[404367610,1770081039085,-200.43567743,0.00054251,120]
[404367612,1770081039095,-3000.0,0.000545,120]
[404367614,1770081039104,-150.0,0.0005452,120]
[404367616,1770081039114,-150.0,0.00054657,120]
[404367618,1770081039123,-186.45275845,0.00054694,2]
[404367620,1770081039133,-234.58580712,0.00054694,26]
[404367622,1770081039143,-151.0,0.000547,120]
[404367624,1770081039152,-243.33805298,0.00054784,4]
[404367626,1770081039162,-1018.74,0.0005479,120]
[404367628,1770081039172,-500.0,0.00054793,120]
[404367629,1770081039182,-500.0,0.00054793,120]
[404367632,1770081039192,-293.35471003,0.00054793,120]
[404367634,1770081039202,-250.0,0.00054794,120]
[404367635,1770081039212,-10697.9,0.00054794,120]
[404367637,1770081039221,-500.0,0.00054794,120]
[404367639,1770081039231,-785.13,0.00054794,120]
[404367642,1770081039241,-3006.0,0.00054794,30]
[404367644,1770081039253,-500.0,0.00054794,120]
[404367646,1770081039265,-500.0,0.00054794,120]
[404367647,1770081039274,-500.0,0.00054794,120]
[404367649,1770081039284,-500.0,0.00054794,120]
[404367652,1770081039294,-300.0,0.00054794,2]
[404367653,1770081039303,-922.04,0.00054794,120]
[404367656,1770081039312,-500.0,0.00054794,120]
[404367657,1770081039322,-1534.69,0.00054794,120]
[404367659,1770081039331,-518.51403624,0.00054794,120]
[404367661,1770081039341,-500.0,0.00054794,120]
[404367664,1770081039350,-617.21,0.00054794,120]
[404367666,1770081039360,-500.0,0.00054794,120]
[404367668,1770081039370,-500.0,0.00054794,120]
[404367669,1770081039380,-514.69391865,0.00054794,120]
[404367672,1770081039389,-1776.03,0.00054794,120]
[404367673,1770081039399,-500.0,0.00054794,120]
[404367676,1770081039408,-158.553807,0.00054794,120]
[404367677,1770081039418,-158.553807,0.00054794,120]
[404367679,1770081039430,-158.553807,0.00054794,120]
[404367681,1770081039439,-158.553807,0.00054794,120]
[404367684,1770081039448,-500.0,0.00054794,120]
[404367686,1770081039457,-500.0,0.00054794,120]
[404367688,1770081039469,-3619.79,0.00054794,120]
[404367690,1770081039479,-500.0,0.00054794,120]
[404367692,1770081039488,-403.43716649,0.00054794,120]
[404367694,1770081039498,-1000.0,0.00054794,2]
[404367696,1770081039508,-500.0,0.00054794,120]
[404367698,1770081039517,-534.18,0.00054794,120]
[404367700,1770081039526,-1005.14,0.00054794,120]
[404367702,1770081039535,-1005.14,0.00054794,120]
[404367704,1770081039545,-1005.14,0.00054794,120]
[404367706,1770081039554,-1005.14,0.00054794,120]
[404367708,1770081039562,-1005.14,0.00054794,120]
[404367710,1770081039571,-1005.14,0.00054794,120]
[404367712,1770081039580,-1005.14,0.00054794,120]
[404367714,1770081039589,-1005.14,0.00054794,120]
[404367716,1770081039599,-1005.14,0.00054794,120]
[404367718,1770081039607,-1005.14,0.00054794,120]
[404367719,1770081039616,-1005.14,0.00054794,120]
[404367722,1770081039625,-1005.14,0.00054794,120]
[404367723,1770081039635,-1005.14,0.00054794,120]
[404367725,1770081039644,-1005.14,0.00054794,120]
[404367727,1770081039654,-1005.14,0.00054794,120]
[404367730,1770081039663,-1005.14,0.00054794,120]
[404367732,1770081039680,-1005.14,0.00054794,120]
[404367734,1770081039689,-1005.14,0.00054794,120]
[404367736,1770081039698,-1005.14,0.00054794,120]
[404367738,1770081039707,-1005.14,0.00054794,120]
[404367740,1770081039716,-1005.14,0.00054794,120]
[404367742,1770081039725,-500.0,0.00054794,120]
[404367744,1770081039735,-1005.14,0.00054794,120]
[404367746,1770081039744,-1005.14,0.00054794,120]
[404367748,1770081039753,-1005.14549248,0.00054794,120]
[404367750,1770081039763,-524.84027864,0.00054794,120]
[404367752,1770081039773,-500.0,0.00054794,120]
[404367754,1770081039783,-15442.08,0.00054794,120]
[404367756,1770081039792,-500.0,0.00054794,2]
[404367758,1770081039800,-1719.64,0.00054794,120]
[404367760,1770081039809,-500.0,0.00054794,120]
[404367762,1770081039818,-493.80105201,0.00054794,120]
[404367764,1770081039827,-500.0,0.00054794,120]
[404367766,1770081039836,-1156.16,0.00054794,120]
[404367768,1770081039845,-330.10239056,0.00054794,120]
[404367770,1770081039854,-526.30987633,0.00054794,120]
[404367772,1770081039863,-577.255489,0.00054794,120]
[404367774,1770081039872,-500.0,0.00054794,120]
[404367776,1770081039882,-500.0,0.00054794,120]
[404367778,1770081039891,-150.0,0.00054795,14]
[404367780,1770081039900,-150.0,0.00054931,120]
[404367782,1770081039910,-200.0,0.00054931,120]
[404367784,1770081039919,-1444.18480697,0.00055,120]
[404367786,1770081039928,-1000.0,0.00055056,120]
[404367788,1770081039937,-250.0,0.00055342,14]
[404367790,1770081039946,-1777.5818884,0.00055367,2]
[404367792,1770081039956,-789.59065,0.00055367,2]
[404367794,1770081039965,-3000.0,0.000555,120]
[404367795,1770081039973,-151.0,0.000555,120]
[404367798,1770081039983,-243.33805298,0.00055623,4]
[404367799,1770081039992,-188.6001964,0.00055633,2]
[404367801,1770081040004,-754.40078559,0.00055633,2]
[404367803,1770081040014,-1697.40176757,0.00055633,2]
[404367805,1770081040023,-152.44461797,0.00055633,2]
[404367807,1770081040034,-274.40031234,0.00055633,2]
[404367809,1770081040043,-398.62353292,0.00055633,2]
[404367812,1770081040053,-219.64157567,0.00055633,2]
[404367814,1770081040062,-878.56630269,0.00055633,2]
[404367816,1770081040072,-1976.77418105,0.00055633,2]
[404367818,1770081040082,-296.93472848,0.00055633,2]
[404367828,1770081040169,-534.48251127,0.00055633,2]
[404367830,1770081040178,-268.0,0.00055633,120]
[404367832,1770081040187,-180.04181475,0.00055633,2]
[404367834,1770081040196,-720.16725899,0.00055633,2]
[404367836,1770081040205,-1620.37633272,0.00055633,2]
[404367838,1770081040215,-401.51508697,0.00055633,2]
[404367840,1770081040225,-722.72715655,0.00055633,2]
[404367843,1770081040234,-350.0,0.0005589,14]
[404367845,1770081040245,-151.0,0.000559,120]
[404367847,1770081040255,-2000.0,0.00056,120]
[404367849,1770081040264,-450.0,0.00056438,14]
[404367850,1770081040273,-564.27352889,0.00056824,2]
[404367853,1770081040283,-550.0,0.00056986,14]
[404367855,1770081040293,-151.0,0.00057,120]
[404367857,1770081040302,-151.0,0.000582,120]
[404367859,1770081040311,-827.503402,0.00058224,60]
[404367860,1770081040320,-3000.0,0.000585,120]
[404367862,1770081040329,-862.18057,0.0005852,60]
[404367865,1770081040338,-625.699714,0.00058813,60]
[404367867,1770081040347,-1000.0,0.00059,120]
[404367869,1770081040357,-151.0,0.000594,120]
[404367870,1770081040367,-190.23173765,0.00059645,60]
[404367872,1770081040377,-160.0,0.00059813,3]
[404367875,1770081040386,-161.17308503,0.00059813,5]
[404367877,1770081040395,-1156.48266441,0.00059815,5]
[404367878,1770081040406,-248.50849408,0.00059815,5]
[404367880,1770081040415,-993.03994233,0.00059815,5]
[404367882,1770081040425,-200.66733429,0.00059815,5]
[404367884,1770081040435,-289.41007618,0.00059815,5]
[404367886,1770081040444,-1185.32291569,0.00059815,5]
[404367888,1770081040453,-237.23156767,0.00059815,5]
[404367890,1770081040462,-243.33805298,0.00059816,5]
[404367892,1770081040472,-276.94929564,0.00059825,120]
[404367894,1770081040481,-151.0,0.00059826,120]
[404367897,1770081040492,-158.553807,0.00059826,120]
[404367899,1770081040505,-158.553807,0.00059826,120]
[404367901,1770081040514,-158.553807,0.00059826,120]
[404367903,1770081040523,-158.553807,0.00059826,120]
[404367905,1770081040532,-59107.72047914,0.00059826,30]
[404367907,1770081040542,-500.0,0.00059839,30]
[404367909,1770081040552,-500.0,0.00059839,30]
[404367911,1770081040561,-1844.2653397,0.000599,120]
[404367913,1770081040571,-154.7,0.000599,30]
[404367915,1770081040580,-200.0,0.0006,120]
[404367917,1770081040591,-500.0,0.0006,120]
[404367918,1770081040610,-1000.0,0.0006,120]
[404367920,1770081040619,-1998.91352845,0.0006,120]
[404367922,1770081040630,-947.97734439,0.00060077,5]
[404367924,1770081040640,-390.86391648,0.00060104,5]
[404367926,1770081040653,-243.33805298,0.00060263,5]
[404367928,1770081040673,-10697.9,0.00060273,120]
[404367930,1770081040684,-500.0,0.00060273,120]
[404367932,1770081040695,-785.13,0.00060273,120]
[404367935,1770081040704,-638.90832492,0.00060273,120]
[404367936,1770081040715,-500.0,0.00060273,120]
[404367938,1770081040726,-500.0,0.00060273,120]
[404367940,1770081040736,-500.0,0.00060273,120]
[404367942,1770081040746,-300.0,0.00060273,2]
[404367944,1770081040755,-922.04,0.00060273,120]
[404367946,1770081040766,-500.0,0.00060273,120]
[404367948,1770081040777,-1534.69,0.00060273,120]
[404367950,1770081040787,-500.0,0.00060273,120]
[404367952,1770081040796,-617.21,0.00060273,120]
[404367954,1770081040805,-151.0,0.00060273,120]
[404367956,1770081040815,-500.0,0.00060273,120]
[404367958,1770081040824,-1776.03,0.00060273,120]
[404367960,1770081040833,-500.0,0.00060273,120]
[404367962,1770081040843,-158.553807,0.00060273,120]
[404367964,1770081040852,-158.553807,0.00060273,120]
[404367966,1770081040861,-158.553807,0.00060273,120]
[404367967,1770081040869,-158.553807,0.00060273,120]
[404367969,1770081040879,-3619.79,0.00060273,120]
[404367971,1770081040887,-500.0,0.00060273,120]
[404367973,1770081040896,-1000.0,0.00060273,2]
[404367975,1770081040906,-500.0,0.00060273,120]
[404367977,1770081040915,-534.18,0.00060273,120]
[404367979,1770081040925,-500.0,0.00060273,120]
[404367981,1770081040934,-500.0,0.00060273,120]
[404367983,1770081040943,-15442.08,0.00060273,120]
[404367985,1770081040952,-500.0,0.00060273,2]
[404367987,1770081040960,-1719.64,0.00060273,120]
[404367989,1770081040970,-500.0,0.00060273,120]
[404367991,1770081040979,-1156.16,0.00060273,120]
[404367993,1770081040987,-500.0,0.00060273,120]
[404367995,1770081041001,-500.0,0.00060273,120]
[404367997,1770081041011,-200.27,0.00060274,90]
[404367999,1770081041020,-1000.0,0.00060561,120]
[404368001,1770081041029,-244.0,0.00060561,120]
[404368003,1770081041039,-151.0,0.000606,120]
[404368005,1770081041048,-1235.355462,0.000608,60]
[404368007,1770081041057,-300.0,0.00061164,2]
[404368009,1770081041066,-528.52611825,0.00061289,5]
[404368011,1770081041075,-151.0,0.000617,120]
[404368013,1770081041084,-200.0,0.00062,120]
[404368015,1770081041093,-1000.0,0.00062,120]
[404368017,1770081041102,-1000.0,0.00063013,120]
[404368019,1770081041111,-151.0,0.00063014,120]
[404368021,1770081041120,-151.0,0.00063014,120]
[404368023,1770081041129,-200.644546,0.00063014,120]
[404368026,1770081041148,-243.33805298,0.0006399,5]
[404368028,1770081041160,-1000.0,0.00064,120]
[404368030,1770081041170,-1000.0,0.00064,120]
[404368032,1770081041180,-150.30481812,0.00064718,2]
[404368034,1770081041189,-500.0,0.00065,120]
[404368036,1770081041199,-526.17,0.00065,120]
[404368039,1770081041209,-526.17,0.00065,120]
[404368040,1770081041219,-526.17,0.00065,120]
[404368043,1770081041229,-526.17,0.00065,120]
[404368045,1770081041239,-526.17,0.00065,120]
[404368047,1770081041249,-526.17,0.00065,120]
[404368049,1770081041258,-695.83,0.00065,120]
[404368051,1770081041268,-300.0,0.00065116,2]
[404368053,1770081041277,-252.68,0.00065644,120]
[404368055,1770081041287,-243.33805298,0.00065743,5]
[404368057,1770081041296,-300.0,0.00065753,2]
[404368059,1770081041305,-1000.0,0.00065753,120]
[404368061,1770081041314,-10697.9,0.00065753,120]
[404368063,1770081041323,-500.0,0.00065753,120]
[404368065,1770081041332,-785.13,0.00065753,120]
[404368067,1770081041341,-566.91126012,0.00065753,120]
[404368069,1770081041350,-500.0,0.00065753,120]
[404368071,1770081041359,-596.76840842,0.00065753,120]
[404368073,1770081041368,-279.72,0.00065753,2]
[404368075,1770081041377,-922.04,0.00065753,120]
[404368077,1770081041386,-500.0,0.00065753,120]
[404368079,1770081041396,-1534.69,0.00065753,120]
[404368081,1770081041405,-500.0,0.00065753,120]
[404368083,1770081041414,-617.21,0.00065753,120]
[404368085,1770081041427,-203.284592,0.00065753,120]
[404368087,1770081041436,-500.0,0.00065753,120]
[404368089,1770081041445,-1776.03,0.00065753,120]
[404368091,1770081041454,-500.0,0.00065753,120]
[404368093,1770081041464,-158.553807,0.00065753,120]
[404368095,1770081041473,-158.553807,0.00065753,120]
[404368097,1770081041482,-158.553807,0.00065753,120]
[404368099,1770081041493,-158.553807,0.00065753,120]
[404368101,1770081041502,-3619.79,0.00065753,120]
[404368103,1770081041511,-1000.0,0.00065753,2]
[404368105,1770081041519,-642.51125496,0.00065753,120]
[404368107,1770081041528,-534.18,0.00065753,120]
[404368109,1770081041537,-500.0,0.00065753,120]
[404368111,1770081041546,-500.0,0.00065753,120]
[404368113,1770081041557,-15442.08,0.00065753,120]
[404368115,1770081041566,-500.0,0.00065753,2]
[404368117,1770081041575,-1719.64,0.00065753,120]
[404368119,1770081041584,-500.0,0.00065753,120]
[404368121,1770081041593,-1156.16,0.00065753,120]
[404368123,1770081041602,-201.05104543,0.00065753,120]
[404368125,1770081041611,-500.0,0.00065753,120]
[404368127,1770081041621,-1000.0,0.00066,120]
[404368129,1770081041630,-1000.0,0.00066617,120]
[404368131,1770081041639,-492.0,0.00066617,120]
[404368133,1770081041647,-305.857599,0.00067598,60]
[404368135,1770081041657,-755.21,0.00068,60]
[404368137,1770081041667,-1000.0,0.00068,120]
[404368139,1770081041676,-305.857599,0.0006842,60]
[404368141,1770081041685,-150.0,0.00068742,120]
[404368143,1770081041693,-206.099336,0.00068742,120]
[404368145,1770081041704,-262.198672,0.00068742,120]
[404368147,1770081041713,-318.298008,0.00068742,120]
[404368149,1770081041722,-374.397344,0.00068742,120]
[404368151,1770081041731,-430.496681,0.00068742,120]
[404368153,1770081041741,-486.596017,0.00068742,120]
[404368155,1770081041751,-542.695353,0.00068742,120]
[404368157,1770081041759,-598.794689,0.00068742,120]
[404368159,1770081041768,-654.894025,0.00068742,120]
[404368161,1770081041777,-3000.0,0.00069,120]
[404368163,1770081041786,-3000.0,0.0006901,120]
[404368165,1770081041795,-3000.0,0.0006902,120]
[404368167,1770081041804,-3000.0,0.0006903,120]
[404368169,1770081041814,-3666.472786,0.0006904,120]
[404368172,1770081041823,-5000.0,0.000692,30]
[404368174,1770081041833,-158.553807,0.000692,120]
[404368176,1770081041841,-158.553807,0.000692,120]
[404368178,1770081041850,-158.553807,0.000692,120]
[404368180,1770081041859,-158.553812,0.000692,120]
[404368182,1770081041868,-243.33805298,0.0006999,6]
[404368184,1770081041878,-500.0,0.0007,120]
[404368186,1770081041888,-2000.0,0.0007,120]
[404368188,1770081041897,-289.47018574,0.0007,30]
[404368195,1770081041958,-4544.32474989,0.00039755,30]
[404368197,1770081041969,-455.67525011,0.00039755,30]
[404368199,1770081041978,-151.0,0.000629,120]
[404368201,1770081041987,-2706.18427657,0.0007,30]
[404368685,1770081046832,-500.0,0.00054794,120]
[404368687,1770081046841,-151.0,0.000641,120]
[404368689,1770081046850,-151.0,0.000653,120]
[404368691,1770081046859,-151.0,0.000664,120]
[404368693,1770081046868,-151.0,0.000676,120]
[404368703,1770081046956,-1493.71994646,0.0007,30]
[404368705,1770081046967,-197.79810255,0.0007,30]
[404368707,1770081046978,-930.55643175,0.0007,30]
[404368709,1770081046987,-617.95188128,0.0007,30]
[404368712,1770081046998,-10564.06192098,0.0007,30]
[404368714,1770081047009,-9255.28352557,0.0007,30]
[404368716,1770081047018,-502.0,0.00070649,120]
[404368718,1770081047027,-243.33805298,0.00071222,6]
[404368720,1770081047036,-1000.0,0.00071232,120]
[404368722,1770081047044,-2181.07639474,0.00071232,120]
[404369648,1770081179381,1000.0,0.00039755,30]
[404369649,1770081228454,261.52478427,0.00039755,120]
[404369650,1770081228835,261.52478427,0.00039755,120]
[404369706,1770081348061,261.52478426,0.00039774,120]
[404369751,1770081483192,150.0,0.00017808,2]
[404369752,1770081483246,302.15272124,0.00018356,2]
[404369763,1770081551259,-221.3815406,0.00039655,2]
[404369764,1770081551285,-201.36421988,0.00039728,2]
[404369765,1770081551310,-300.0,0.00039773,5]
[404369766,1770081551339,-5000.0,0.00039774,30]
[404369767,1770081551372,-300.0,0.00040569,60]
[404369768,1770081551396,-300.0,0.00040569,60]
[404369769,1770081551422,-300.0,0.00040569,60]
[404369770,1770081551447,-300.0,0.00040569,60]
[404369771,1770081551471,-300.0,0.00040569,60]
[404369772,1770081551515,-154.0,0.0005,120]
[404369773,1770081551539,-26948.05408278,0.00052037,2]
[404369774,1770081551565,-201.36421988,0.00052037,2]
[404369775,1770081551598,-154.0,0.000521,120]
[404369776,1770081551623,-1000.0,0.00053,120]
[404369777,1770081551647,-154.0,0.000542,120]
[404369778,1770081551671,-2613.0,0.00054693,120]
[404369779,1770081551695,-500.0,0.00054792,7]
[404369780,1770081551720,-500.0,0.00054792,120]
[404369781,1770081551743,-500.0,0.00054792,31]
[404369782,1770081551767,-156.61634992,0.00054792,120]
[404369783,1770081551790,-500.0,0.00054792,120]
[404369784,1770081551815,-500.0,0.00054792,7]
[404369785,1770081551839,-478.7724661,0.00054792,120]
[404369786,1770081551862,-173.10051979,0.00054792,120]
[404369787,1770081551886,-500.0,0.00054792,31]
[404369788,1770081551910,-500.0,0.00054792,7]
[404369789,1770081551933,-500.0,0.00054792,31]
[404369790,1770081551957,-500.0,0.00054792,7]
[404369791,1770081551981,-500.0,0.00054792,7]
[404369792,1770081552006,-500.0,0.00054792,7]
[404369793,1770081552029,-500.0,0.00054792,31]
[404369794,1770081552052,-500.0,0.00054792,7]
[404369795,1770081552077,-500.0,0.00054792,7]
[404369796,1770081552101,-326.01144291,0.00054792,31]
[404369797,1770081552206,-500.0,0.00054792,7]
[404369798,1770081552232,-500.0,0.00054792,7]
[404369799,1770081552257,-500.0,0.00054792,7]
[404369800,1770081552281,-500.0,0.00054792,7]
[404369801,1770081552305,-500.0,0.00054792,7]
[404369802,1770081552329,-500.0,0.00054792,7]
[404369803,1770081552354,-418.33515814,0.00054792,7]
[404369804,1770081552493,-81.66484186,0.00054792,7]
[404369805,1770081552517,-500.0,0.00054792,7]
[404369806,1770081552542,-500.0,0.00054792,7]
[404369807,1770081552565,-500.0,0.00054792,7]
[404369808,1770081552595,-500.0,0.00054792,7]
[404369809,1770081552619,-500.0,0.00054792,7]
[404369810,1770081552646,-500.0,0.00054792,7]
[404369811,1770081552670,-500.0,0.00054792,7]
[404369812,1770081552694,-557.06380866,0.00054792,7]
[404369813,1770081552718,-500.0,0.00054792,7]
[404369814,1770081552742,-500.0,0.00054792,7]
[404369815,1770081552764,-500.0,0.00054794,120]
[404369816,1770081552786,-1000.0,0.00054794,30]
[404369817,1770081552808,-500.0,0.00054794,120]
[404369818,1770081552830,-500.0,0.00054794,120]
[404369819,1770081552853,-151.0,0.00054794,120]
[404369820,1770081552876,-500.0,0.00054794,120]
[404369821,1770081552899,-892.43,0.00054794,120]
[404369822,1770081552921,-500.0,0.00054794,2]